[Event "Betsys MČR v online bleskovém šachu 2021"]
[Site "Chess.com"]
[Date "2021.04.17"]
[Round "9"]
[White "FormerProdigy"]
[Black "Lunaticx"]
[Result "0-1"]
[WhiteElo "2862"]
[BlackElo "2991"]
[TimeControl "180+1"]
[EndTime "10:31:28 PDT"]
[Termination "Uživatel Lunaticx zvítězil na čas"]

1. e4 {[%clk 0:03:00.9]} 1... e5 {[%clk 0:02:49.9]} 2. Nf3 {[%clk 0:03:00.7]}
2... Nc6 {[%clk 0:02:50.4]} 3. Bc4 {[%clk 0:02:59.8]} 3... Nf6 {[%clk 0:02:49]}
4. d3 {[%clk 0:02:59.4]} 4... Bc5 {[%clk 0:02:48.7]} 5. c3 {[%clk 0:02:59.5]}
5... d6 {[%clk 0:02:46.3]} 6. O-O {[%clk 0:02:57]} 6... a5 {[%clk 0:02:43.9]} 7.
Re1 {[%clk 0:02:30.6]} 7... O-O {[%clk 0:02:41.5]} 8. Nbd2 {[%clk 0:02:27.5]}
8... h6 {[%clk 0:02:37.9]} 9. Nf1 {[%clk 0:02:19.5]} 9... Be6 {[%clk 0:02:37.7]}
10. Bb5 {[%clk 0:02:16.3]} 10... Ba7 {[%clk 0:02:11.8]} 11. Ng3 {[%clk
0:02:07.9]} 11... Ne7 {[%clk 0:02:09.5]} 12. d4 {[%clk 0:02:08.2]} 12... Ng6
{[%clk 0:02:08.7]} 13. h3 {[%clk 0:02:02.7]} 13... c6 {[%clk 0:02:04.7]} 14. Bd3
{[%clk 0:01:54.7]} 14... Qc7 {[%clk 0:01:57.3]} 15. Be3 {[%clk 0:01:53.8]} 15...
Rfe8 {[%clk 0:01:51.7]} 16. Qd2 {[%clk 0:01:52.2]} 16... Kh7 {[%clk 0:01:51]}
17. c4 {[%clk 0:01:31.6]} 17... Bd7 {[%clk 0:01:28.9]} 18. Rac1 {[%clk
0:01:16.5]} 18... a4 {[%clk 0:01:27.1]} 19. c5 {[%clk 0:01:04.8]} 19... exd4
{[%clk 0:01:22.2]} 20. Bxd4 {[%clk 0:01:04.3]} 20... Bxc5 {[%clk 0:01:15.5]} 21.
Bxf6 {[%clk 0:00:23.9]} 21... gxf6 {[%clk 0:01:16.4]} 22. Nh5 {[%clk 0:00:22.8]}
22... Qd8 {[%clk 0:01:15.3]} 23. Qc3 {[%clk 0:00:11.8]} 23... Ne5 {[%clk
0:01:13]} 24. Nd4 {[%clk 0:00:09.1]} 24... Rg8 {[%clk 0:01:06.6]} 25. Kh2 {[%clk
0:00:08.2]} 25... Rg5 {[%clk 0:01:02.9]} 26. Be2 {[%clk 0:00:05.8]} 26... Ng6
{[%clk 0:00:49.1]} 27. f4 {[%clk 0:00:04.5]} 27... Rxh5 {[%clk 0:00:49.4]} 28.
Bxh5 {[%clk 0:00:03.8]} 28... Nxf4 {[%clk 0:00:50.3]} 29. Bg4 {[%clk 0:00:03.6]}
29... Bxg4 {[%clk 0:00:47.8]} 30. hxg4 {[%clk 0:00:04.5]} 30... Qe7 {[%clk
0:00:47.8]} 31. Nf5 {[%clk 0:00:04.1]} 31... Qe5 {[%clk 0:00:47.1]} 32. Qxe5
{[%clk 0:00:04.3]} 32... fxe5 {[%clk 0:00:46.8]} 33. Red1 {[%clk 0:00:05.2]}
33... Rg8 {[%clk 0:00:31.3]} 34. Rc2 {[%clk 0:00:04.2]} 34... Rxg4 {[%clk
0:00:30.5]} 35. g3 {[%clk 0:00:04.3]} 35... Ne6 {[%clk 0:00:27.7]} 36. Nxd6
{[%clk 0:00:04.7]} 36... Bxd6 {[%clk 0:00:27.5]} 37. Rxd6 {[%clk 0:00:05.6]}
37... Rxe4 {[%clk 0:00:24.6]} 38. Rd7 {[%clk 0:00:05.9]} 38... Kg6 {[%clk
0:00:24.5]} 39. Rxb7 {[%clk 0:00:05.8]} 39... c5 {[%clk 0:00:24.9]} 40. Rb6
{[%clk 0:00:04.6]} 40... Rd4 {[%clk 0:00:21.6]} 41. Rxc5 {[%clk 0:00:03.8]}
41... Kf5 {[%clk 0:00:20.1]} 42. Rc2 {[%clk 0:00:02.8]} 42... Ng5 {[%clk
0:00:17.8]} 43. Rf2+ {[%clk 0:00:03.7]} 43... Kg4 {[%clk 0:00:18]} 44. Rxh6
{[%clk 0:00:03.2]} 44... Nf3+ {[%clk 0:00:17.8]} 45. Kg2 {[%clk 0:00:03.7]}
45... Ne1+ {[%clk 0:00:18.3]} 46. Kh2 {[%clk 0:00:03.9]} 46... Nf3+ {[%clk
0:00:18.4]} 47. Kg2 {[%clk 0:00:04.2]} 47... Ne1+ {[%clk 0:00:19]} 48. Kf1
{[%clk 0:00:04.7]} 48... Rd1 {[%clk 0:00:19.4]} 49. Ke2 {[%clk 0:00:03]} 49...
Rb1 {[%clk 0:00:19.4]} 50. Rxf7 {[%clk 0:00:01.7]} 50... Ng2 {[%clk 0:00:15.1]}
51. Rg6+ {[%clk 0:00:01.7]} 51... Kh5 {[%clk 0:00:15.7]} 52. Rg8 {[%clk
0:00:01.8]} 52... Rxb2+ {[%clk 0:00:14.7]} 53. Kf3 {[%clk 0:00:01.4]} 53... Ne1+
{[%clk 0:00:14.5]} 54. Ke4 {[%clk 0:00:01.8]} 54... Re2+ {[%clk 0:00:14.6]} 55.
Kd5 {[%clk 0:00:02.3]} 55... Kh6 {[%clk 0:00:15]} 56. Rg4 {[%clk 0:00:01.2]}
56... Nd3 {[%clk 0:00:14.7]} 0-1

[Event "Betsys MČR v online bleskovém šachu 2021"]
[Site "Chess.com"]
[Date "2021.04.17"]
[Round "9"]
[White "JakubPulpan"]
[Black "penguinorodriguez"]
[Result "1-0"]
[WhiteElo "2716"]
[BlackElo "2542"]
[TimeControl "180+1"]
[EndTime "10:31:28 PDT"]
[Termination "Uživatel JakubPulpan zvítězil po vzdání soupeře"]

1. Nf3 {[%clk 0:03:00.9]} 1... d5 {[%clk 0:02:38]} 2. b3 {[%clk 0:03:00.8]} 2...
c5 {[%clk 0:02:37.5]} 3. Bb2 {[%clk 0:03:00.8]} 3... Nf6 {[%clk 0:02:38.1]} 4.
e3 {[%clk 0:03:01.3]} 4... e6 {[%clk 0:02:38]} 5. Be2 {[%clk 0:03:01.9]} 5...
Nc6 {[%clk 0:02:37.9]} 6. d4 {[%clk 0:03:02.4]} 6... Be7 {[%clk 0:02:33.6]} 7.
dxc5 {[%clk 0:03:02.4]} 7... Bxc5 {[%clk 0:02:33.7]} 8. O-O {[%clk 0:03:03.3]}
8... O-O {[%clk 0:02:33.4]} 9. Nbd2 {[%clk 0:03:00.3]} 9... Re8 {[%clk
0:02:26.4]} 10. c4 {[%clk 0:02:53.9]} 10... e5 {[%clk 0:02:26.2]} 11. cxd5
{[%clk 0:02:48.6]} 11... Qxd5 {[%clk 0:02:19.2]} 12. Nc4 {[%clk 0:02:31.8]}
12... Qxd1 {[%clk 0:01:58.8]} 13. Rfxd1 {[%clk 0:02:31.7]} 13... e4 {[%clk
0:01:55.8]} 14. Nfe5 {[%clk 0:02:31.8]} 14... Nxe5 {[%clk 0:01:52.7]} 15. Bxe5
{[%clk 0:02:30.6]} 15... b5 {[%clk 0:01:40.7]} 16. Bxf6 {[%clk 0:02:23]} 16...
bxc4 {[%clk 0:01:41.1]} 17. Bd4 {[%clk 0:02:01.4]} 17... Bxd4 {[%clk 0:01:41.5]}
18. Rxd4 {[%clk 0:02:01.7]} 18... cxb3 {[%clk 0:01:41.7]} 19. Bb5 {[%clk
0:01:48.7]} 19... b2 {[%clk 0:01:26.8]} 20. Rb1 {[%clk 0:01:44.7]} 20... Rf8
{[%clk 0:01:21.5]} 21. Rxb2 {[%clk 0:01:44.4]} 21... Rb8 {[%clk 0:01:16]} 22.
Rdb4 {[%clk 0:01:42.6]} 22... Be6 {[%clk 0:01:10.5]} 23. a3 {[%clk 0:01:42.8]}
23... Rfc8 {[%clk 0:01:06.4]} 24. h3 {[%clk 0:01:41]} 24... Rb6 {[%clk
0:00:47.2]} 25. Be2 {[%clk 0:01:24.4]} 25... Rcb8 {[%clk 0:00:46.1]} 26. Rxb6
{[%clk 0:01:12]} 26... Rxb6 {[%clk 0:00:47]} 27. Rd2 {[%clk 0:01:07.6]} 27... f5
{[%clk 0:00:34.3]} 28. Rd8+ {[%clk 0:00:56.8]} 28... Kf7 {[%clk 0:00:34.8]} 29.
Ra8 {[%clk 0:00:57.7]} 29... Rb7 {[%clk 0:00:35]} 30. g4 {[%clk 0:00:58.1]}
30... g6 {[%clk 0:00:33.6]} 31. g5 {[%clk 0:00:56.4]} 31... Bd5 {[%clk
0:00:29.1]} 32. Rh8 {[%clk 0:00:53.2]} 32... Ke6 {[%clk 0:00:26.6]} 33. h4
{[%clk 0:00:48.1]} 33... Re7 {[%clk 0:00:23.7]} 34. h5 {[%clk 0:00:44.1]} 34...
gxh5 {[%clk 0:00:21.6]} 35. Bxh5 {[%clk 0:00:45]} 35... Rg7 {[%clk 0:00:20.5]}
36. Kh2 {[%clk 0:00:38.8]} 36... Rxg5 {[%clk 0:00:20.8]} 37. Rxh7 {[%clk
0:00:39.1]} 37... Ke5 {[%clk 0:00:18.4]} 38. Be2 {[%clk 0:00:37.1]} 38... f4
{[%clk 0:00:16.6]} 39. exf4+ {[%clk 0:00:35.4]} 39... Kxf4 {[%clk 0:00:17.5]}
40. Rxa7 {[%clk 0:00:35.9]} 40... Rg8 {[%clk 0:00:11.2]} 41. Rh7 {[%clk
0:00:31.7]} 41... e3 {[%clk 0:00:11.1]} 42. Rh4+ {[%clk 0:00:31.8]} 42... Ke5
{[%clk 0:00:09.2]} 43. Rh5+ {[%clk 0:00:15.7]} 43... Kd4 {[%clk 0:00:09]} 44.
fxe3+ {[%clk 0:00:15.6]} 44... Ke4 {[%clk 0:00:08.8]} 45. Bf1 {[%clk 0:00:09]}
45... Bb7 {[%clk 0:00:06.8]} 46. Bg2+ {[%clk 0:00:08.2]} 46... Kxe3 {[%clk
0:00:02.9]} 47. Bxb7 {[%clk 0:00:07.9]} 47... Kf2 {[%clk 0:00:03.4]} 48. Rf5+
{[%clk 0:00:07.3]} 48... Ke3 {[%clk 0:00:04]} 49. Bg2 {[%clk 0:00:07.4]} 49...
Ke2 {[%clk 0:00:04.2]} 50. Rf3 {[%clk 0:00:06.8]} 50... Rh8+ {[%clk 0:00:04.3]}
51. Rh3 {[%clk 0:00:07.2]} 51... Rxh3+ {[%clk 0:00:02.2]} 52. Kxh3 {[%clk
0:00:08.1]} 52... Kd3 {[%clk 0:00:03]} 53. a4 {[%clk 0:00:08.4]} 53... Kc4
{[%clk 0:00:03.9]} 54. Bc6 {[%clk 0:00:09]} 54... Kc5 {[%clk 0:00:03.9]} 55. Bb5
{[%clk 0:00:09.9]} 55... Kb4 {[%clk 0:00:04.8]} 56. Kg3 {[%clk 0:00:10.8]} 56...
Ka5 {[%clk 0:00:05.7]} 57. Kf3 {[%clk 0:00:11.7]} 1-0

[Event "Betsys MČR v online bleskovém šachu 2021"]
[Site "Chess.com"]
[Date "2021.04.17"]
[Round "9"]
[White "Innerz98"]
[Black "PetrVelicka"]
[Result "0-1"]
[WhiteElo "2116"]
[BlackElo "2362"]
[TimeControl "180+1"]
[EndTime "10:31:28 PDT"]
[Termination "Uživatel PetrVelicka zvítězil po vzdání soupeře"]

1. d4 {[%clk 0:03:00.9]} 1... d5 {[%clk 0:02:58.6]} 2. Bf4 {[%clk 0:03:01.1]}
2... Nf6 {[%clk 0:02:57.2]} 3. e3 {[%clk 0:03:01.6]} 3... c5 {[%clk 0:02:57.1]}
4. c3 {[%clk 0:03:01.7]} 4... Nc6 {[%clk 0:02:56.9]} 5. Bd3 {[%clk 0:03:01.8]}
5... cxd4 {[%clk 0:02:52]} 6. exd4 {[%clk 0:03:01.9]} 6... Bg4 {[%clk
0:02:51.7]} 7. Nf3 {[%clk 0:03:01.7]} 7... e6 {[%clk 0:02:51]} 8. Nbd2 {[%clk
0:03:01.4]} 8... Bxf3 {[%clk 0:02:46.9]} 9. Nxf3 {[%clk 0:03:00.7]} 9... Bd6
{[%clk 0:02:47.5]} 10. Ne5 {[%clk 0:03:00.6]} 10... O-O {[%clk 0:02:41.4]} 11.
O-O {[%clk 0:02:58.5]} 11... Qc7 {[%clk 0:02:39.8]} 12. Re1 {[%clk 0:02:53.7]}
12... Rfe8 {[%clk 0:02:31.2]} 13. Qf3 {[%clk 0:02:49.6]} 13... Bxe5 {[%clk
0:02:25.7]} 14. dxe5 {[%clk 0:02:45.6]} 14... Nd7 {[%clk 0:02:25.5]} 15. Qh5
{[%clk 0:02:43.6]} 15... Nf8 {[%clk 0:02:24.9]} 16. Re3 {[%clk 0:02:38.5]} 16...
Ng6 {[%clk 0:02:23.3]} 17. Bg3 {[%clk 0:02:33.8]} 17... Nce7 {[%clk 0:02:21.1]}
18. Rae1 {[%clk 0:02:32.1]} 18... Qd7 {[%clk 0:02:19.7]} 19. Bh4 {[%clk
0:02:30.7]} 19... Nf5 {[%clk 0:02:18.7]} 20. Bxf5 {[%clk 0:02:24.7]} 20... exf5
{[%clk 0:02:17.5]} 21. f4 {[%clk 0:02:10.4]} 21... Nxf4 {[%clk 0:02:08.6]} 22.
Qf3 {[%clk 0:02:08.7]} 22... Ng6 {[%clk 0:02:06.9]} 23. Bf2 {[%clk 0:02:07.6]}
23... Qc6 {[%clk 0:01:57.6]} 24. Rd1 {[%clk 0:02:06.3]} 24... Rad8 {[%clk
0:01:54.8]} 25. Qxf5 {[%clk 0:02:04.2]} 25... a6 {[%clk 0:01:50.7]} 26. Kh1
{[%clk 0:01:56.6]} 26... Qe6 {[%clk 0:01:47.8]} 27. Qxe6 {[%clk 0:01:52]} 27...
fxe6 {[%clk 0:01:46.9]} 28. Bg3 {[%clk 0:01:50.2]} 28... Rc8 {[%clk 0:01:46.3]}
29. Red3 {[%clk 0:01:46]} 29... Ne7 {[%clk 0:01:44.5]} 30. Bf2 {[%clk
0:01:38.8]} 30... h5 {[%clk 0:01:41.5]} 31. Rh3 {[%clk 0:01:34.7]} 31... g6
{[%clk 0:01:40.6]} 32. Rg3 {[%clk 0:01:30.1]} 32... Kh7 {[%clk 0:01:39.5]} 33.
Rh3 {[%clk 0:01:24.1]} 33... Kg7 {[%clk 0:01:37.4]} 34. Kg1 {[%clk 0:01:21.6]}
34... Nf5 {[%clk 0:01:36.9]} 35. Bh4 {[%clk 0:01:20]} 35... Rc4 {[%clk
0:01:31.8]} 36. Bf6+ {[%clk 0:01:19.4]} 36... Kf7 {[%clk 0:01:31.5]} 37. b3
{[%clk 0:01:06.6]} 37... Rc7 {[%clk 0:01:26.8]} 38. g4 {[%clk 0:01:05.7]} 38...
Ng7 {[%clk 0:01:21.7]} 39. Bxg7 {[%clk 0:01:01.5]} 39... Kxg7 {[%clk 0:01:21.2]}
40. gxh5 {[%clk 0:01:02]} 40... gxh5 {[%clk 0:01:21.3]} 41. Rxh5 {[%clk
0:01:02.9]} 41... Rxc3 {[%clk 0:01:20.5]} 42. Rg5+ {[%clk 0:00:56.7]} 42... Kh6
{[%clk 0:01:16.9]} 43. Rg2 {[%clk 0:00:54.3]} 43... Rec8 {[%clk 0:01:13.6]} 44.
Rf2 {[%clk 0:00:50.8]} 44... Rg8+ {[%clk 0:01:07.1]} 45. Kh1 {[%clk 0:00:47.4]}
45... Re3 {[%clk 0:01:06.9]} 46. Rf6+ {[%clk 0:00:46.5]} 46... Rg6 {[%clk
0:01:06.7]} 47. Rf7 {[%clk 0:00:38.1]} 47... b5 {[%clk 0:00:59.6]} 48. Ra7
{[%clk 0:00:32.8]} 48... Rxe5 {[%clk 0:00:59.4]} 49. Rxa6 {[%clk 0:00:33.2]}
49... Re2 {[%clk 0:00:59.6]} 50. Rg1 {[%clk 0:00:30.9]} 50... d4 {[%clk
0:00:55.6]} 51. Rd6 {[%clk 0:00:26.3]} 51... Re4 {[%clk 0:00:46.7]} 52. a4
{[%clk 0:00:22.6]} 52... Rxg1+ {[%clk 0:00:45.4]} 53. Kxg1 {[%clk 0:00:22.7]}
53... bxa4 {[%clk 0:00:45]} 54. bxa4 {[%clk 0:00:23.6]} 54... Kg5 {[%clk
0:00:44.6]} 55. a5 {[%clk 0:00:23.7]} 55... e5 {[%clk 0:00:44.7]} 56. a6 {[%clk
0:00:23.4]} 56... Re1+ {[%clk 0:00:44.6]} 57. Kf2 {[%clk 0:00:23]} 57... Ra1
{[%clk 0:00:44]} 58. h4+ {[%clk 0:00:18.7]} 58... Kf4 {[%clk 0:00:41.7]} 59. h5
{[%clk 0:00:17.5]} 59... Ra2+ {[%clk 0:00:41.1]} 60. Kg1 {[%clk 0:00:15]} 60...
Kg3 {[%clk 0:00:40.2]} 61. Kf1 {[%clk 0:00:14.6]} 61... Kf3 {[%clk 0:00:40.2]}
62. Ke1 {[%clk 0:00:13.6]} 62... Ke3 {[%clk 0:00:40]} 63. Kd1 {[%clk 0:00:14.1]}
63... d3 {[%clk 0:00:40.1]} 64. Kc1 {[%clk 0:00:07.1]} 64... d2+ {[%clk
0:00:40]} 65. Kd1 {[%clk 0:00:06.5]} 65... Ra1+ {[%clk 0:00:37.7]} 66. Kc2
{[%clk 0:00:06.5]} 66... Rc1+ {[%clk 0:00:37.6]} 67. Kb2 {[%clk 0:00:06.2]}
67... d1=Q {[%clk 0:00:37.2]} 0-1

[Event "Betsys MČR v online bleskovém šachu 2021"]
[Site "Chess.com"]
[Date "2021.04.17"]
[Round "9"]
[White "mravecuk"]
[Black "Johanna94"]
[Result "1-0"]
[WhiteElo "2231"]
[BlackElo "2067"]
[TimeControl "180+1"]
[EndTime "10:31:29 PDT"]
[Termination "Uživatel mravecuk zvítězil po vzdání soupeře"]

1. d4 {[%clk 0:03:00.9]} 1... d5 {[%clk 0:02:59.6]} 2. Nc3 {[%clk 0:02:58.7]}
2... Nf6 {[%clk 0:02:59]} 3. Bf4 {[%clk 0:02:57.7]} 3... c5 {[%clk 0:02:56.5]}
4. e3 {[%clk 0:02:56.9]} 4... Nc6 {[%clk 0:02:56.1]} 5. Nb5 {[%clk 0:02:55.8]}
5... Qa5+ {[%clk 0:02:16.5]} 6. c3 {[%clk 0:02:55.3]} 6... e5 {[%clk 0:02:00.3]}
7. Bxe5 {[%clk 0:02:52.4]} 7... Nxe5 {[%clk 0:01:58.8]} 8. dxe5 {[%clk
0:02:52.6]} 8... Ng4 {[%clk 0:01:42.4]} 9. Qxd5 {[%clk 0:02:47.7]} 9... Be6
{[%clk 0:01:42.5]} 10. Qe4 {[%clk 0:02:40.9]} 10... Rd8 {[%clk 0:01:37.1]} 11.
Nf3 {[%clk 0:02:33.3]} 11... a6 {[%clk 0:01:36.4]} 12. Na3 {[%clk 0:02:16.6]}
12... Be7 {[%clk 0:01:28.8]} 13. Bc4 {[%clk 0:02:07.5]} 13... Nh6 {[%clk
0:01:21.7]} 14. Bxe6 {[%clk 0:02:06.6]} 14... fxe6 {[%clk 0:01:22.1]} 15. Nc4
{[%clk 0:02:04.3]} 15... Qc7 {[%clk 0:01:18.4]} 16. O-O {[%clk 0:01:44.9]} 16...
O-O {[%clk 0:01:18.5]} 17. Rfd1 {[%clk 0:01:40.1]} 17... b5 {[%clk 0:01:18.7]}
18. Ncd2 {[%clk 0:01:31.7]} 18... Nf5 {[%clk 0:01:13.4]} 19. Nf1 {[%clk
0:01:29.1]} 19... c4 {[%clk 0:00:49.3]} 20. Ng3 {[%clk 0:01:25.2]} 20... Nxg3
{[%clk 0:00:47.9]} 21. hxg3 {[%clk 0:01:25]} 21... Bc5 {[%clk 0:00:47.4]} 22.
Nd4 {[%clk 0:01:21.5]} 22... Qf7 {[%clk 0:00:46.6]} 23. Rd2 {[%clk 0:01:19.1]}
23... Rd5 {[%clk 0:00:42.1]} 24. f4 {[%clk 0:01:15.3]} 24... g5 {[%clk
0:00:40.5]} 25. Rf1 {[%clk 0:01:12.2]} 25... g4 {[%clk 0:00:40]} 26. a3 {[%clk
0:01:07.7]} 26... Rfd8 {[%clk 0:00:38.6]} 27. f5 {[%clk 0:01:02.1]} 27... exf5
{[%clk 0:00:36]} 28. Rxf5 {[%clk 0:01:01.8]} 28... Qe7 {[%clk 0:00:35.3]} 29.
Qxg4+ {[%clk 0:00:57.6]} 29... Kh8 {[%clk 0:00:35.1]} 30. Rdf2 {[%clk
0:00:49.4]} 30... Rxe5 {[%clk 0:00:32.6]} 31. Rf7 {[%clk 0:00:39.7]} 31... Qg5
{[%clk 0:00:32.5]} 32. Qxg5 {[%clk 0:00:35.1]} 32... Rxg5 {[%clk 0:00:32.7]} 33.
R7f5 {[%clk 0:00:31.4]} 33... Bxd4 {[%clk 0:00:26]} 34. exd4 {[%clk 0:00:29.4]}
34... Rg6 {[%clk 0:00:26]} 35. Kh2 {[%clk 0:00:28.3]} 35... Kg7 {[%clk
0:00:26.2]} 36. Rf7+ {[%clk 0:00:27.6]} 36... Kh6 {[%clk 0:00:26.5]} 37. R7f6
{[%clk 0:00:27.7]} 37... Kg7 {[%clk 0:00:25.8]} 38. Rxg6+ {[%clk 0:00:27.1]}
38... hxg6 {[%clk 0:00:26.3]} 39. g4 {[%clk 0:00:25.5]} 39... Rh8+ {[%clk
0:00:25.6]} 40. Kg3 {[%clk 0:00:25.7]} 40... Rh1 {[%clk 0:00:26.2]} 41. Rd2
{[%clk 0:00:23.4]} 41... Rb1 {[%clk 0:00:25.5]} 42. d5 {[%clk 0:00:23.6]} 42...
Kf7 {[%clk 0:00:22.3]} 43. d6 {[%clk 0:00:23.7]} 43... Ke8 {[%clk 0:00:22.5]}
44. d7+ {[%clk 0:00:23.9]} 44... Kd8 {[%clk 0:00:23]} 45. Kf4 {[%clk 0:00:24.3]}
45... Re1 {[%clk 0:00:22.7]} 46. Kg5 {[%clk 0:00:24.6]} 46... Re4 {[%clk
0:00:21.7]} 47. g3 {[%clk 0:00:19.9]} 47... a5 {[%clk 0:00:21.3]} 48. Kh4 {[%clk
0:00:19.4]} 48... Re5 {[%clk 0:00:20.7]} 49. g5 {[%clk 0:00:18.5]} 49... Re4+
{[%clk 0:00:19.9]} 50. Kh3 {[%clk 0:00:18.7]} 50... b4 {[%clk 0:00:19.4]} 51.
axb4 {[%clk 0:00:18.3]} 51... axb4 {[%clk 0:00:20.3]} 52. cxb4 {[%clk
0:00:18.7]} 52... Re1 {[%clk 0:00:20.3]} 53. Kg4 {[%clk 0:00:18.3]} 53... Re4+
{[%clk 0:00:20.2]} 54. Kf3 {[%clk 0:00:18.4]} 54... Re5 {[%clk 0:00:20.4]} 55.
Kf4 {[%clk 0:00:18.7]} 55... Re1 {[%clk 0:00:20.5]} 56. Rd4 {[%clk 0:00:14.7]}
56... Rb1 {[%clk 0:00:19.2]} 57. Rxc4 {[%clk 0:00:14.8]} 57... Rxb2 {[%clk
0:00:19.7]} 58. Rd4 {[%clk 0:00:15.1]} 58... Rb3 {[%clk 0:00:19.5]} 59. Ke5
{[%clk 0:00:14.2]} 59... Rf3 {[%clk 0:00:19.9]} 60. Ke6 {[%clk 0:00:13.3]} 60...
Rxg3 {[%clk 0:00:18.7]} 61. Kf6 {[%clk 0:00:13.2]} 61... Rf3+ {[%clk 0:00:19]}
62. Kxg6 {[%clk 0:00:13.5]} 1-0

[Event "Betsys MČR v online bleskovém šachu 2021"]
[Site "Chess.com"]
[Date "2021.04.17"]
[Round "9"]
[White "tryskomys"]
[Black "Lisak007"]
[Result "0-1"]
[WhiteElo "1547"]
[BlackElo "1836"]
[TimeControl "180+1"]
[EndTime "10:31:31 PDT"]
[Termination "Uživatel Lisak007 zvítězil po vzdání soupeře"]

1. e4 {[%clk 0:03:00.9]} 1... c5 {[%clk 0:02:58.7]} 2. Nf3 {[%clk 0:03:00.2]}
2... Nc6 {[%clk 0:02:58.4]} 3. d4 {[%clk 0:03:00.1]} 3... cxd4 {[%clk
0:02:58.4]} 4. Nxd4 {[%clk 0:03:00.1]} 4... Nf6 {[%clk 0:02:58.4]} 5. Nc3 {[%clk
0:02:59.2]} 5... e6 {[%clk 0:02:58.4]} 6. Nxc6 {[%clk 0:02:56.5]} 6... bxc6
{[%clk 0:02:57.6]} 7. Bd3 {[%clk 0:02:56.4]} 7... d5 {[%clk 0:02:57.3]} 8. Qe2
{[%clk 0:02:55.3]} 8... Be7 {[%clk 0:02:56.8]} 9. O-O {[%clk 0:02:54.2]} 9...
O-O {[%clk 0:02:56.4]} 10. b3 {[%clk 0:02:49.9]} 10... Qa5 {[%clk 0:02:54.8]}
11. Bb2 {[%clk 0:02:47.8]} 11... d4 {[%clk 0:02:44.7]} 12. Nd1 {[%clk
0:02:42.8]} 12... e5 {[%clk 0:02:44.6]} 13. f4 {[%clk 0:02:31.5]} 13... exf4
{[%clk 0:02:36.6]} 14. Rxf4 {[%clk 0:02:26.4]} 14... c5 {[%clk 0:02:36.4]} 15.
h3 {[%clk 0:02:14.4]} 15... Qc7 {[%clk 0:02:36.2]} 16. Rf1 {[%clk 0:02:12.4]}
16... Bb7 {[%clk 0:02:35.8]} 17. Bc1 {[%clk 0:02:10]} 17... Bd6 {[%clk
0:02:25.5]} 18. Nb2 {[%clk 0:02:05.6]} 18... Rae8 {[%clk 0:02:22.6]} 19. Rxf6
{[%clk 0:01:36.6]} 19... gxf6 {[%clk 0:02:11.6]} 20. Bh6 {[%clk 0:01:29.5]}
20... Kh8 {[%clk 0:02:03.1]} 21. Bxf8 {[%clk 0:01:28.2]} 21... Bxf8 {[%clk
0:02:01.5]} 22. Nc4 {[%clk 0:01:25.9]} 22... f5 {[%clk 0:01:56.1]} 23. e5 {[%clk
0:01:22.3]} 23... Bd5 {[%clk 0:01:34.4]} 24. Re1 {[%clk 0:01:18.4]} 24... Bg7
{[%clk 0:01:24.6]} 25. Bxf5 {[%clk 0:01:07.7]} 25... Qe7 {[%clk 0:01:06.3]} 26.
e6 {[%clk 0:01:01.9]} 26... Qg5 {[%clk 0:00:55.8]} 27. Bg4 {[%clk 0:00:52.6]}
27... fxe6 {[%clk 0:00:51.6]} 28. Nd6 {[%clk 0:00:44.7]} 28... Re7 {[%clk
0:00:25.6]} 29. Ne4 {[%clk 0:00:44.1]} 29... Qg6 {[%clk 0:00:18.4]} 30. Ng3
{[%clk 0:00:37.8]} 30... e5 {[%clk 0:00:14.2]} 31. Ne4 {[%clk 0:00:33.9]} 31...
Bh6 {[%clk 0:00:05.5]} 32. Bf3 {[%clk 0:00:27.1]} 32... Be3+ {[%clk 0:00:05.2]}
33. Kh1 {[%clk 0:00:26.8]} 33... Bxe4 {[%clk 0:00:05.4]} 34. Bxe4 {[%clk
0:00:26.1]} 34... Qxe4 {[%clk 0:00:05.5]} 35. Qh5 {[%clk 0:00:24.2]} 35... Qg6
{[%clk 0:00:04]} 36. Qf3 {[%clk 0:00:22.6]} 36... Rg7 {[%clk 0:00:03.6]} 37. Rf1
{[%clk 0:00:19.9]} 37... h5 {[%clk 0:00:01.8]} 38. Qf8+ {[%clk 0:00:18.6]} 38...
Kh7 {[%clk 0:00:02]} 39. Qf3 {[%clk 0:00:18.4]} 39... Bf4 {[%clk 0:00:02.1]} 40.
Qf2 {[%clk 0:00:17.1]} 40... Qg3 {[%clk 0:00:02.2]} 41. Qxg3 {[%clk 0:00:16.9]}
41... Rxg3 {[%clk 0:00:02.3]} 42. Rf3 {[%clk 0:00:16.6]} 42... Kg6 {[%clk
0:00:02.7]} 43. Rd3 {[%clk 0:00:15.7]} 43... Kf5 {[%clk 0:00:01.9]} 44. Rxg3
{[%clk 0:00:14.9]} 44... Bxg3 {[%clk 0:00:01.2]} 45. Kg1 {[%clk 0:00:15.1]}
45... e4 {[%clk 0:00:02]} 46. Kf1 {[%clk 0:00:15.2]} 46... e3 {[%clk 0:00:02.7]}
47. Ke2 {[%clk 0:00:15.3]} 47... Ke4 {[%clk 0:00:03.4]} 48. a4 {[%clk
0:00:14.4]} 48... a5 {[%clk 0:00:04]} 49. Kd1 {[%clk 0:00:13.4]} 49... h4 {[%clk
0:00:04.6]} 50. Ke2 {[%clk 0:00:11.6]} 50... Kf4 {[%clk 0:00:05.2]} 51. Kd3
{[%clk 0:00:11.6]} 51... Bf2 {[%clk 0:00:05.8]} 52. Ke2 {[%clk 0:00:10.7]} 52...
Kg3 {[%clk 0:00:06.5]} 53. Kf1 {[%clk 0:00:10.7]} 53... Kh2 {[%clk 0:00:06.3]}
54. Ke2 {[%clk 0:00:09.7]} 54... Kxg2 {[%clk 0:00:06.4]} 55. Kd3 {[%clk
0:00:09.7]} 55... Kxh3 {[%clk 0:00:07]} 56. Kc4 {[%clk 0:00:09.5]} 56... Kg3
{[%clk 0:00:07.5]} 57. Kxc5 {[%clk 0:00:09.5]} 57... h3 {[%clk 0:00:08]} 0-1